Cogmind - Beta 13 @@@ ROGUE MODE // 2024.04.14 @ 22:03:44 Player: Ryahrii Result: Self-destructed Performance ------------- Evolutions (1) 500 Regions Visited (3) 600 Robots Destroyed (23) 115 Value Destroyed (526) 526 Prototype IDs (2) 40 Alien Tech Used (0) 0 Bonus (32) 32 TOTAL SCORE: 1813 Bonus ------- Follower Combat Kills 32 Cogmind --------- Core Integrity 349/400 Matter 300/300 Energy 250/250 System Corruption 0% Temperature Cool (0) Movement Core (250) Ox4 Location -9/Materials Parts ------- > --- POWER (1) -------- Ion Engine > --- PROPULSION (2) --- (None) > --- UTILITY (4) ------ Improved Heat Sink > --- WEAPON (2) ------- Advanced Beam Cannon Advanced Beam Cannon > --- INVENTORY (5) ---- VTOL Module Heat Sink Advanced Beam Cannon Mini Grenade Launcher Mini Grenade Launcher Peak State ------------ > --- POWER ------------ Light Nuclear Core > --- PROPULSION ------- VTOL Module VTOL Module > --- UTILITY ---------- Improved Heat Sink Targeting Computer > --- WEAPON ----------- Improved Medium Laser Advanced Beam Cannon > --- INVENTORY -------- Ion Engine VTOL Module VTOL Module Heat Sink Rocket Launcher [Rating: 17] Favorites ----------- Power Ion Engine Engine Ion Engine Power Core Light Nuclear Core Propulsion VTOL Module Leg Aluminum Leg Flight Unit VTOL Module Utility Improved Heat Sink Device Improved Heat Sink Processor Targeting Computer Weapon Beam Cannon Energy Gun Medium Laser Energy Cannon Beam Cannon Ballistic Gun Assault Rifle Build | -11 -10 -10 -9 ------- Run | Yrd Mat Min Mat Slots Evolved 2 | . . . 2 Power . | . . . . Propulsion . | . . . . Utility 2 | . . . 2 Weapon . | . . . . Parts Attached 31 | 5 26 . . Power 5 | 1 4 . . Engine 2 | 1 1 . . Core 3 | . 3 . . Reactor . | . . . . Propulsion 10 | 2 8 . . Treads . | . . . . Leg 6 | 2 4 . . Wheel . | . . . . Hover . | . . . . Flight 4 | . 4 . . Utility 3 | . 3 . . Device 2 | . 2 . . Storage . | . . . . Processor 1 | . 1 . . Hackware . | . . . . Protection . | . . . . Artifact . | . . . . Weapon 13 | 2 11 . . Energy Gun 2 | 1 1 . . Energy Cannon 10 | . 10 . . Ballistic Gun 1 | 1 . . . Ballistic Cannon . | . . . . Launcher . | . . . . Special Weapon . | . . . . Impact Weapon . | . . . . Slashing Weapon . | . . . . Piercing Weapon . | . . . . Special Melee Weapon . | . . . . Unidentified Prototypes 2 | . 2 . . Parts Lost 6 | . 3 1 2 Power 1 | . 1 . . Propulsion 4 | . 2 . 2 Utility 1 | . . 1 . Weapon . | . . . . Highest Loss Streak 2 | . 2 1 2 To Critical Strikes . | . . . . Average Slot Usage (%) 87 | . 87 88 55 Engine 9 | . 7 14 11 Core 3 | . 4 . . Leg 12 | . 18 . . Flight 13 | . 8 28 11 Device 12 | . 12 14 11 Processor 9 | . 11 3 . Energy Gun 1 | . 2 . . Energy Cannon 21 | . 18 28 22 Ballistic Gun 1 | . 2 . . Naked Turns . | . . . . Heaviest Build 14 | 9 14 14 14 Greatest Support 20 | 20 20 8 8 Greatest Overweight (x) 4 | 1 3 1 4 Average Overweight (x) . | . . 1 2 Largest Inventory Capacity 5 | 5 5 5 5 Average Capacity 5 | 5 5 5 5 Most Carried 5 | 5 5 5 5 Average Carried 4 | 2 4 5 5 Final Capacity 5 | 5 5 5 5 Final Carried 5 | 3 5 5 5 Class Distribution -------------------- 100% | Mutant Dominant Class ---------------- Mutant | -10/Materials Mutant | -10/Mines Mutant | -9/Materials Resources | -11 -10 -10 -9 ----------- Run | Yrd Mat Min Mat Matter Collected 559 | 187 336 36 . Remotely . | . . . . Salvage Created 686 | . 427 185 74 Parts 55 | . 37 12 6 Haulers Intercepted . | . . . . Recyclers Shooed . | . . . . Parts Field Recycled . | . . . . Retrieved Matter . | . . . . Parts Self-Destructed . | . . . . Prevented . | . . . . Kills | -11 -10 -10 -9 ------- Run | Yrd Mat Min Mat Combat Hostiles Destroyed 17 | . 8 6 3 Cannons 17 | . 8 6 3 Classes Destroyed 5 | . 5 . . Worker 2 | . 1 1 . Tunneler 1 | . 1 . . Watcher 3 | . 3 . . Swarmer 7 | . 1 4 2 Grunt 10 | . 7 2 1 Best Kill Streak 3 | . 3 3 3 Combat Bots Only 3 | . 2 3 3 Max Kills in Single Turn 1 | . 1 1 1 Gunslinging . | . . . . Exploded . | . . . . Melee . | . . . . Uniques/NPCs Destroyed . | . . . . Combat | -11 -10 -10 -9 -------- Run | Yrd Mat Min Mat Hostile Shots Fired 102 | . 55 23 24 Missed 28 | . 12 8 8 Damage Taken 890 | . 580 174 136 Core 216 | . 109 56 51 Absorbed by Shields . | . . . . Regen/Repaired (Parts) 21 | . 21 . . Core Remaining (%) 67 | 100 . 34 . Volleys Fired 67 | . 37 23 7 Largest 2 | . 2 2 2 Hottest 136 | . 120 136 136 Shots Fired 122 | . 73 35 14 Gun 17 | . 17 . . Cannon 105 | . 56 35 14 Launcher . | . . . . Special . | . . . . Kinetic 9 | . 9 . . Thermal 113 | . 64 35 14 Explosive . | . . . . Electromagnetic . | . . . . Robot Hit Streak 11 | . 11 5 4 Robot Miss Streak 6 | . 6 4 2 Penetration Max . | . . . . Secondary Targets . | . . . . Shots Hit Robots 59 | . 32 20 7 Core Hits 26 | . 15 8 3 Critical Kills . | . . . . Critical Parts Destroyed . | . . . . Critical Strikes . | . . . . Melee Attacks . | . . . . Impact . | . . . . Slashing . | . . . . Piercing . | . . . . Sneak Attacks . | . . . . Combat Hostiles . | . . . . Follow-up Attacks . | . . . . Damage Inflicted 1219 | . 642 433 144 Guns 75 | . 75 . . Cannons 1133 | . 559 430 144 Explosions . | . . . . Melee . | . . . . Ramming 11 | . 8 3 . Kinetic 50 | . 50 . . Thermal 1158 | . 584 430 144 Explosive . | . . . . Electromagnetic . | . . . . Impact . | . . . . Slashing . | . . . . Piercing . | . . . . Highest Corruption 2 | . 2 2 . Average Corruption 2 | . 2 2 . Corruption Purged . | . . . . Corruption Blocked . | . . . . Effects 10 | . 3 7 . Message Errors 3 | . . 3 . Matter Fused 4 | . 2 2 . Heat Flow Errors 1 | . . 1 . Energy Discharges 1 | . 1 . . Misfires 1 | . . 1 . Overload Shots . | . . . . Overflow Damage 17 | . 16 1 . Projectiles 17 | . 16 1 . Explosions . | . . . . Melee . | . . . . Knockbacks . | . . . . Impact . | . . . . Kinetic . | . . . . Secondary . | . . . . Self-Inflicted Damage 5 | . 4 1 . Shots . | . . . . Rammed 2 | . 1 1 . Targets Rammed 2 | . 1 1 . Kicked . | . . . . Crushed . | . . . . Highest Temperature 290 | . 207 290 160 Average Temperature 58 | . 49 69 74 Received Heat Transfer 258 | . 162 78 18 Effects 3 | . . 3 . Interference 3 | . . 3 . Siege Activations . | . . . . Robots Corrupted . | . . . . Combat Hostiles . | . . . . Parts Fried . | . . . . Impact Corruptions . | . . . . Robots Melted . | . . . . Combat Hostiles . | . . . . Parts Melted 3 | . 2 1 . Heat Transferred 2294 | . 1258 777 259 Parts Sabotaged . | . . . . Parts Stolen . | . . . . Parts Stripped . | . . . . Power Chain Reactions . | . . . . Alert | -11 -10 -10 -9 ------- Run | Yrd Mat Min Mat Peak Influence 184 | . 163 184 127 Initial 34 | . . 34 . Average 75 | . 62 121 73 Maximum Alert Level . | . . . . Low Security (%) 100 | 100 100 100 100 Level 1 . | . . . . Level 2 . | . . . . Level 3 . | . . . . Level 4 . | . . . . Level 5 . | . . . . High Security . | . . . . Max Security . | . . . . Squads Dispatched 3 | . 2 . 1 Investigation 1 | . 1 . . Extermination . | . . . . Reinforcement 2 | . 1 . 1 Assault . | . . . . Garrison . | . . . . Intercept . | . . . . Searches Triggered . | . . . . Construction Impeded . | . . . . Haulers Reinforced . | . . . . Active Scanning Responses . | . . . . Cargo Convoy Interrupts . | . . . . Stealth | -11 -10 -10 -9 --------- Run | Yrd Mat Min Mat Distress Signals 1 | . . . 1 Communications Jammed . | . . . . Distress Signals . | . . . . Times Spotted 31 | . 16 8 7 Peak Tracking Total 6 | . 3 3 6 Tactical Retreats 1 | . 1 . . Traps | -11 -10 -10 -9 ------- Run | Yrd Mat Min Mat Traps Triggered 5 | . 5 . . Indirectly . | . . . . Trap Hack Attempts . | . . . . Triggered . | . . . . Disarmed . | . . . . Reprogrammed . | . . . . Reused . | . . . . Traps Extracted . | . . . . Installed . | . . . . Triggered . | . . . . Machines | -11 -10 -10 -9 ---------- Run | Yrd Mat Min Mat Machines Disabled 2 | . . 1 1 Max in Single Turn 1 | . . 1 1 Machines Repaired . | . . . . Machines Dismantled . | . . . . Machines Sabotaged . | . . . . Overloaded Fab Kills . | . . . . Hacking | -11 -10 -10 -9 --------- Run | Yrd Mat Min Mat Machines Accessed 3 | . 3 . . Terminals 2 | . 2 . . Fabricators . | . . . . Repair Stations 1 | . 1 . . Recycling Units . | . . . . Scanalyzers . | . . . . Garrison Access . | . . . . Total Hacks 17 | . 17 . . Successful 13 | . 13 . . Failed 4 | . 4 . . Catastrophic . | . . . . Database Lockouts . | . . . . Manual . | . . . . Terminals 7 | . 7 . . Fabricators . | . . . . Repair Stations 10 | . 10 . . Recycling Units . | . . . . Scanalyzers . | . . . . Garrison Access . | . . . . Terminal Hacks 5 | . 5 . . Alert Level 2 | . 2 . . Unreport Threat 1 | . 1 . . Surveillance Status 1 | . 1 . . Hauler Manifests 1 | . 1 . . Fabricator Hacks . | . . . . Repair Station Hacks 8 | . 8 . . Scan Component 5 | . 5 . . Repair 3 | . 3 . . Recycling Unit Hacks . | . . . . Scanalyzer . | . . . . Garrison Access Hacks . | . . . . Unauthorized Hacks . | . . . . Terminals . | . . . . Fabricators . | . . . . Repair Stations . | . . . . Recycling Units . | . . . . Scanalyzers . | . . . . Garrison Access . | . . . . Data Cores Recovered . | . . . . Used . | . . . . Hacking Detections 2 | . 2 . . Full Trace Events 1 | . 1 . . Feedback Events . | . . . . Feedback Blocked . | . . . . Robot Schematics Acquired . | . . . . Robots Built . | . . . . Authchips . | . . . . Time . | . . . . Total Robot Build Rating . | . . . . Part Schematics Acquired . | . . . . Parts Built . | . . . . Authchips . | . . . . Time . | . . . . Total Part Build Rating . | . . . . Parts Repaired 3 | . 3 . . Time 90 | . 90 . . Parts Recycled . | . . . . Recycled Matter . | . . . . Retrieved Matter . | . . . . Retrieved Components . | . . . . Parts Scanalyzed . | . . . . Part Schematics Acquired . | . . . . Parts Damaged . | . . . . Bothacking | -11 -10 -10 -9 ------------ Run | Yrd Mat Min Mat Used RIF Installer . | . . . . Robots Hacked . | . . . . Non-combat . | . . . . Combat . | . . . . Robot Hacks Applied . | . . . . Relay Couplers Released . | . . . . Fabnet Peak Effective % . | . . . . Robots Rewired . | . . . . Allies Hacked . | . . . . Hacks Repelled . | . . . . Allies | -11 -10 -10 -9 -------- Run | Yrd Mat Min Mat Total Allies 1 | . . 1 . Largest Group 1 | . . 1 1 Highest-Rated Group 31 | . . 31 31 Highest-Rated Ally 31 | . . 31 31 Total Orders . | . . . . Ally Attacks 13 | . . . 13 Total Damage 145 | . . . 145 Kills 2 | . . . 2 Allies Corrupted . | . . . . Allies Melted . | . . . . Intel | -11 -10 -10 -9 ------- Run | Yrd Mat Min Mat Robot Analysis Total . | . . . . Derelict Logs Recovered . | . . . . Drone Launches . | . . . . Drone Recoveries . | . . . . Exploration | -11 -10 -10 -9 ------------- Run | Yrd Mat Min Mat Turns Passed 1648 | 64 1106 419 59 Spaces Moved 1174 | 58 772 323 21 Core 38 | 28 1 . 9 Treads . | . . . . Legs 536 | 30 506 . . Wheels . | . . . . Hover . | . . . . Flight 600 | . 265 323 12 Fastest Speed 32 | 50 32 112 112 Average Speed 115 | 90 117 112 178 Slowest Speed 275 | 120 200 112 275 Overloaded Moves . | . . . . Propulsion Burnouts . | . . . . Robots Hopped . | . . . . Cave-ins Triggered . | . . . . Exploration Rate (%) 37 | 4 79 57 10 Regions Visited 3 Branch Regions 1 Pre-discovered Areas . | . . . . Known Exits Taken . | . . . . Unknown Exits Taken 3 | 1 1 1 . Scrap Searched 1 | . . 1 . Spaces Dug . | . . . . Terrain Destroyed . | . . . . Melee . | . . . . Projectile . | . . . . AOE . | . . . . Terrain Rammed . | . . . . Walls Destroyed . | . . . . Machines Disabled . | . . . . Actions | -11 -10 -10 -9 --------- Run | Yrd Mat Min Mat Total 1338 | 69 895 346 28 Wait 22 | . 22 . . Move 1171 | 57 771 322 21 Hop . | . . . . Pick Up 24 | 7 17 . . Fast Attach 21 | 1 20 . . Attach 10 | 4 6 . . Detach . | . . . . Swap . | . . . . Drop 21 | . 21 . . Fire 67 | . 37 23 7 Melee . | . . . . Ram 2 | . 1 1 . Kick . | . . . . Crush . | . . . . Escape Stasis . | . . . . Rewire . | . . . . Trap . | . . . . Miscellaneous . | . . . . Route ------- -11/Scrapyard -10/Materials (discovered 4 exits: [*Mat x2] / [*Min x2]) -10/Mines -9/Materials History --------- Turn | Location | Event 5 | -11/Scrapyard | Discovered new exit (range 15) 65 | -11/Scrapyard | Entered Materials 65 | -10/Materials | Discovered new exit (range 14) 277 | -10/Materials | Discovered new exit (range 7) 302 | -10/Materials | Build established: Mutant 384 | -10/Materials | Discovered new exit (range 5) 591 | -10/Materials | Repaired Lgt. Nuclear Core 591 | -10/Materials | Repaired Beam Cannon 617 | -10/Materials | Repaired Beam Cannon? 892 | -10/Materials | Discovered new exit (range 16) 1171 | -10/Materials | Entered Mines 1186 | -10/Mines | Met a Derelict bent on vengeance 1281 | -10/Mines | Discovered new exit (range 10) 1308 | -10/Mines | Core integrity fell below 50% 1464 | -10/Mines | Received a Mining Laser from a helpful Derelict 1590 | -10/Mines | Entered Materials 1590 | -9/Materials | Accompanied by 1 ally 1590 | -9/Materials | Evolved 2 slots: Utility x2 1649 | -9/Materials | Self-destructed Last Messages --------------- PARAMETERS=UTILITY+2 LOCATION=UNKNOWN GOAL=ESCAPE O-16 Technician: "IFF HANDSHAKE FAILED. SECURING TERMINAL." O-16 Technician sends out distress signal. ALERT: Hostiles spotted, dispatching reinforcements to Terminal M004. Destroyed Flight Unit. G-34 Mercenary destroyed. S-10 Pest destroyed. VTOL Module destroyed. Material Processor disabled. VTOL Module destroyed. G-34 Mercenary destroyed. S-10 Pest destroyed. R-06 Scavenger collects Aluminum Leg. R-06 Scavenger collects Flight Unit. R-06 Scavenger collects Sml. Laser. R-06 Scavenger collects Aluminum Leg. Map ----- +----------------------------------------------------+ | ?????????????????????????????????????????????? | | ?????????????????????????????????????????????? | | ?????????????????????????????????????????????? | | ?????????????????????????????????????????????? | | ?????????????????????????????????????????????? | | ?????????????????????????????????????????????? | | ?????????????????????????????????????????????? | | ?????????????????????????????????????????????? | | ?????????????????????????????????????????????? | | ?????????????????????????????????????????????? | | ?????????????????????????????????????????????? | | ?????????????????????????????????????????????? | | ?????????????????????????????????????????????? | | ?????????????????????????????????????????????? | | ?????????????????????????????????????????????? | | ?????????????????????????????????????????????? | | ???????????????????????????????##????????????? | | ?????????????????????????????? ?????????????? | | ????????????????""" ????????? ?????????????? | | ????????????????""" ???????? """?????????????? | | ?????????????????"" ??????? ""T"" ??????????? | | ?????????????????[%=?????? a ?????????? | | ??????# ##########+###### ?????????? | | ??????# u %* w ????????? | | ?????# ????????? | | ?????# %@ o ????????? | | ?????# """ %g##+######???????????????? | | ?????# """"" #???????????????????????? | | ?????# """" #???????????????????????? | | ?????# """"" #???????????????????????? | | ?????# """ #???????????????????????? | | ???### #???????????????????????? | | ???""" #???????????????????????? | | ???"R """ #???????????????????????? | | ????"" """"" #???????????????????????? | | ?????# """"" #???????????????????????? | | ?????# """"" #####???????????????????? | | ?????# """ #????????????????? | | ?????# #????????????????? | | ?????# +????????????????? | | ?????# #????????????????? | | ?????# #????????????????? | | ?????# #########+###### #????????????????? | | ?????# #??????????????? #????????????????? | | ?????# #???????????????? #????????????????? | | ?????#####???????????????????????????????????? | | ?????????????????????????????????????????????? | | ?????????????????????????????????????????????? | | ?????????????????????????????????????????????? | | ?????????????????????????????????????????????? | +----------------------------------------------------+ Best States ------------- Heat Dissipation 42 Energy Generation 14 Energy Capacity 250 Matter Stores 300 Matter Capacity 300 Sight Range 16 Terrain Scan Density 10 Evasion (%) 63 Targeting Accuracy 5 Item Schematics ----------------- None Robot Schematics ------------------ None Fabricated ------------ Nothing Alien Tech Used ----------------- None Achievements -------------- Everything Is Under Control Part-time Mechanic Risk Taker Shopping List Challenges ------------ None Game ------ Seed ForceBombNanoactuators Manual? 0 Play Time 00:21:24 Cumulative 0.7 hours Start 2024.04.14 @ 21:42:45 End 2024.04.14 @ 22:03:44 Sessions 1 Manual Loads 0 Difficulty Rogue Special Mode None Game No. 2 Rogue 2 Adventurer 0 Explorer 0 Win Type - Total 0 Types 0/0/0/0/0/0/0/0/0 Lore% 0 Gallery% 3 Achievement% 3 Wizard Run 0 Options --------- Layout 1 ASCII 0 Keyboard 0 Movement Mouse Keybinds 0 Fullscreen 1 Font 24/Smallcaps Map View 50x35 Zoom Use 0% Tactical HUD 0 Map Filters NONE Filters NONE Steam 1 RUN: aa9f84be-2636-41ca-a4e4-20884fabef4e